Cogmind - Beta 11.1 @@@ ROGUE MODE // 2022.05.05 @ 14:08:00 Player: ChromeKnight Result: Destroyed by G-67 Veteran with Plasma Rifle Performance ------------- Evolutions (6) 3000 Regions Visited (12) 2400 Robots Destroyed (64) 320 Value Destroyed (2198) 2198 Prototype IDs (4) 80 Alien Tech Used (0) 0 Bonus (523) 523 TOTAL SCORE: 8521 Bonus ------- High Alert Combat Kills 8 Follower Combat Kills 515 Cogmind --------- Core Integrity 0/1150 Matter 250/300 Energy 170/170 System Corruption 13% Temperature Cool (12) Movement Hovering (45) Location -4/Factory Parts ------- > --- POWER (1) -------- Light Antimatter Reactor > --- PROPULSION (4) --- Gravmag Array Antigrav System Improved Linear Gravjet > --- UTILITY (11) ----- Improved Heat Sink Advanced Heat Sink Advanced Visual Processing Unit Advanced Signal Interpreter Improved Targeting Computer Advanced Melee Analysis Suite Advanced Target Analyzer Improved Core Shielding Improved Propulsion Shielding Improved Propulsion Shielding Graphene Brace > --- WEAPON (3) ------- Variable Charge Gun Tri-rail Accelerator > --- INVENTORY (5) ---- Light Antimatter Reactor Antigrav System Improved Propulsion Shielding Authchip [Processor] Variable Charge Gun Peak State ------------ > --- POWER ------------ Light Antimatter Reactor > --- PROPULSION ------- Antigrav System Antigrav System Antigrav System Improved Linear Gravjet > --- UTILITY ---------- Improved Heat Sink Advanced Heat Sink Advanced Visual Processing Unit Advanced Signal Interpreter Improved Targeting Computer Advanced Melee Analysis Suite Advanced Target Analyzer Improved Core Shielding Hardened Heavy Armor Plating Graphene Brace > --- WEAPON ----------- Tesla Rifle Tesla Rifle Variable Charge Gun > --- INVENTORY -------- Micro Fission Core Improved Coolant Injector Experimental Sensor Array Improved Weapon Cycler Variable Charge Gun [Rating: 103] Favorites ----------- Power Light Nuclear Core Engine Heavy Ion Engine Power Core Light Nuclear Core Reactor Light Antimatter Reactor Propulsion Aluminum Leg Leg Aluminum Leg Hover Unit Antigrav System Utility Advanced Visual Processing Unit Device Graphene Brace Storage Medium Storage Unit Processor Advanced Visual Processing Unit Protection Improved Weapon Shielding Weapon Katana Energy Gun Tesla Rifle Ballistic Gun Assault Rifle Ballistic Cannon Heavy Assault Cannon Launcher Rocket Launcher Impact Weapon Powered Hammer Slashing Weapon Katana Piercing Weapon Spear Build | -11 -10 -10 -10 -9 -8 -7 -6 -5 -5 -4 -4 -4 ------- Run | Scr Mat Min Exi Min Mat Fac Fac Fac Ext Fac Was Fac Slots Evolved 12 | . . . . . 4 2 2 2 . 2 . . Power . | . . . . . . . . . . . . . Propulsion 2 | . . . . . 1 1 . . . . . . Utility 9 | . . . . . 3 1 1 2 . 2 . . Weapon 1 | . . . . . . . 1 . . . . . Parts Attached 104 | 6 6 6 . . 11 12 7 . 18 32 1 5 Power 14 | 1 1 1 . . 2 2 . . 4 3 . . Engine 3 | 1 1 . . . . . . . 1 . . . Core 10 | . . 1 . . 2 2 . . 3 2 . . Reactor 1 | . . . . . . . . . . 1 . . Propulsion 31 | 2 1 3 . . 3 4 3 . 7 7 . 1 Treads . | . . . . . . . . . . . . . Leg 26 | 2 1 3 . . 3 4 3 . 7 3 . . Wheel . | . . . . . . . . . . . . . Hover 5 | . . . . . . . . . . 4 . 1 Flight . | . . . . . . . . . . . . . Utility 34 | 1 1 1 . . 4 5 2 . 6 11 . 3 Device 8 | . . . . . 1 2 . . 1 4 . . Storage 2 | 1 1 . . . . . . . . . . . Processor 10 | . . 1 . . 1 1 . . 2 5 . . Hackware . | . . . . . . . . . . . . . Protection 14 | . . . . . 2 2 2 . 3 2 . 3 Artifact . | . . . . . . . . . . . . . Weapon 25 | 2 3 1 . . 2 1 2 . 1 11 1 1 Energy Gun 4 | . . . . . . . . . . 3 1 . Energy Cannon . | . . . . . . . . . . . . . Ballistic Gun 2 | 2 . . . . . . . . . . . . Ballistic Cannon 2 | . . 1 . . . . . . . . . 1 Launcher 1 | . 1 . . . . . . . . . . . Special Weapon . | . . . . . . . . . . . . . Impact Weapon 3 | . 2 . . . . . 1 . . . . . Slashing Weapon 4 | . . . . . 2 . 1 . 1 . . . Piercing Weapon 9 | . . . . . . 1 . . . 8 . . Special Melee Weapon . | . . . . . . . . . . . . . Unidentified Prototypes 4 | . 1 . . . 1 . . . . 1 . 1 Corrupted Parts 1 | . . . . . . . . . 1 . . . System Corruption 1 | . . . . . . . . . 1 . . . Parts Lost 32 | . 1 1 . . 3 . . . 11 16 . . Power 6 | . 1 . . . 1 . . . 2 2 . . Propulsion 12 | . . . . . 2 . . . 5 5 . . Utility 10 | . . . . . . . . . 4 6 . . Weapon 4 | . . 1 . . . . . . . 3 . . Highest Loss Streak 11 | . 1 1 . . 2 . . . 11 10 . . To Critical Strikes . | . . . . . . . . . . . . . Average Slot Usage (%) 83 | . 76 79 85 85 93 98 97 82 82 70 89 87 Engine 2 | . 14 4 . . . . . . . . . . Core 6 | . . 9 14 14 8 7 6 5 4 . . . Leg 22 | . 28 28 28 28 25 29 26 23 22 4 . . Hover 1 | . . . . . . . . . . 6 21 15 Device 2 | . . . . . . 2 . . . 8 15 15 Storage 8 | . 14 14 14 14 9 7 6 5 5 . . . Processor 14 | . . 9 14 14 16 15 13 11 12 29 26 26 Protection 8 | . . . . . 16 18 24 17 16 3 5 12 Ballistic Cannon 3 | . . 9 14 14 1 . . . . . . 4 Launcher 1 | . 8 2 . . . . . . . . . . Impact Weapon 1 | . 1 . . . . . 4 5 5 1 . . Slashing Weapon 3 | . . . . . 15 11 7 5 5 . . . Piercing Weapon 2 | . . . . . . 3 6 5 5 8 . . Naked Turns . | . . . . . . . . . . . . . Heaviest Build 53 | 11 22 30 27 27 35 34 44 44 53 40 32 41 Greatest Support 85 | 20 20 20 20 20 30 59 80 80 85 75 43 43 Greatest Overweight (x) 6 | 1 1 1 1 1 1 . . . 2 6 . . Average Overweight (x) . | . . . 1 1 . . . . . . . . Largest Inventory Capacity 10 | 8 10 10 10 10 10 10 10 10 10 10 5 5 Average Capacity 8 | 7 8 10 10 10 10 10 10 10 10 5 5 5 Most Carried 10 | . 8 10 10 10 10 10 10 10 10 6 5 5 Average Carried 8 | . 5 9 10 10 8 9 9 10 8 4 5 4 Final Capacity 10 | 8 10 10 10 10 10 10 10 10 10 5 5 5 Final Carried 10 | . 8 10 10 10 10 10 10 10 6 5 5 5 Class Distribution -------------------- 83% | Mutant 8% | Scavenger-Gunner 7% | Scavenger-Mutant Dominant Class ---------------- Mutant | -10/Materials Mutant | -10/Mines Mutant | -10/Exiles Mutant | -9/Mines Mutant | -8/Materials Mutant | -7/Factory Mutant | -6/Factory Mutant | -5/Factory Mutant | -5/Extension Mutant | -4/Factory Scavenger-Gunner | -4/Waste Scavenger-Gunner | -4/Factory Resources | -11 -10 -10 -10 -9 -8 -7 -6 -5 -5 -4 -4 -4 ----------- Run | Scr Mat Min Exi Min Mat Fac Fac Fac Ext Fac Was Fac Matter Collected 2088 | 260 97 484 . 79 390 96 . 111 132 306 . 133 Remotely . | . . . . . . . . . . . . . Salvage Created 2448 | . 284 342 . 76 405 96 . 115 255 616 . 259 Parts 112 | . 17 13 . 2 22 6 . 2 11 30 . 9 Haulers Intercepted 3 | . . . . . 1 . . . . . . 2 Recyclers Shooed 1 | . . 1 . . . . . . . . . . Parts Field Recycled . | . . . . . . . . . . . . . Retrieved Matter . | . . . . . . . . . . . . . Parts Self-Destructed . | . . . . . . . . . . . . . Prevented . | . . . . . . . . . . . . . Kills | -11 -10 -10 -10 -9 -8 -7 -6 -5 -5 -4 -4 -4 ------- Run | Scr Mat Min Exi Min Mat Fac Fac Fac Ext Fac Was Fac Combat Hostiles Destroyed 54 | . 9 11 . 6 9 1 . 2 4 11 . 1 Melee 23 | . . . . . 9 1 . 1 3 9 . . Guns 2 | . 2 . . . . . . . . . . . Cannons 10 | . . 3 . 6 . . . . . . . 1 AOE 15 | . 7 8 . . . . . . . . . . Classes Destroyed 15 | . 5 2 . 1 3 2 . 1 . 1 . . Worker 2 | . 1 . . 1 . . . . . . . . Builder 2 | . 1 1 . . . . . . . . . . Tunneler 1 | . . 1 . . . . . . . . . . Hauler 3 | . . . . . 1 . . . . . . 2 Recycler 3 | . 1 1 . . 1 . . . . . . . Mechanic 1 | . . . . . . 1 . . . . . . Watcher 3 | . . . . . 1 . . . . 1 . 1 Swarmer 17 | . 3 . . 4 6 . . . . 4 . . Grunt 20 | . 6 6 . 1 2 . . . 1 3 . 1 Brawler 1 | . . . . 1 . . . . . . . . Duelist 2 | . . . . . . . . . . 2 . . Sentry 3 | . . . . . 1 . . . 2 . . . Hunter 3 | . . . . . . . . 2 1 . . . Programmer 3 | . . . . . . 1 . . . 2 . . Assembled 5 | . . 5 . . . . . . . . . . Best Kill Streak 6 | . 4 6 . 2 6 1 . 2 1 3 . 2 Combat Bots Only 4 | . 3 4 . 2 3 1 . 2 1 3 . 1 Max Kills in Single Turn 4 | . 2 4 . 1 1 1 . 1 1 1 . 1 Gunslinging . | . . . . . . . . . . . . . Exploded 4 | . 2 4 . . . . . . . . . . Melee 1 | . . . . . 1 1 . 1 1 1 . . Uniques/NPCs Destroyed . | . . . . . . . . . . . . . Combat | -11 -10 -10 -10 -9 -8 -7 -6 -5 -5 -4 -4 -4 -------- Run | Scr Mat Min Exi Min Mat Fac Fac Fac Ext Fac Was Fac Damage Taken 7564 | . 417 188 . 432 572 44 . 483 2790 2472 . 166 Core 1810 | . 87 14 . 67 92 . . 49 339 1128 . 34 Absorbed by Shields 208 | . . . . . . . . . 208 . . . Redirected to Shielding 196 | . . . . . . . . 7 70 57 . 62 Core Remaining (%) 79 | 100 . . . 32 83 100 100 . 61 . . . Volleys Fired 100 | . 35 21 . 28 . . . . . 3 . 13 Largest 3 | . 2 1 . 1 . . . . . 3 . 2 Hottest 205 | . 40 60 . 60 . . . . . 205 . 135 Shots Fired 140 | . 55 21 . 28 . . . . . 9 . 27 Gun 62 | . 40 . . . . . . . . 9 . 13 Cannon 52 | . . 10 . 28 . . . . . . . 14 Launcher 26 | . 15 11 . . . . . . . . . . Special . | . . . . . . . . . . . . . Kinetic 92 | . 40 10 . 28 . . . . . . . 14 Thermal 16 | . . . . . . . . . . 3 . 13 Explosive 26 | . 15 11 . . . . . . . . . . Electromagnetic 6 | . . . . . . . . . . 6 . . Robot Hit Streak 7 | . 6 4 . 5 . . . . . 2 . 7 Robot Miss Streak 3 | . 3 2 . 2 . . . . . 2 . 2 Penetration Max 1 | . . . . 1 . . . . . . . . Secondary Targets . | . . . . . . . . . . . . . Shots Hit Robots 187 | . 34 12 . 18 22 6 . 5 31 44 . 15 Core Hits 101 | . 20 25 . 4 12 3 . . 8 19 . 10 Critical Kills 2 | . . . . . . . . . 2 . . . Critical Parts Destroyed 5 | . . . . . . . . 1 3 1 . . Critical Strikes 21 | . . . . 2 3 . . 1 5 8 . 2 Blast 4 | . . . . 2 . . . . . . . 2 Smash 7 | . . . . . . . . 1 5 1 . . Sever 3 | . . . . . 3 . . . . . . . Impale 7 | . . . . . . . . . . 7 . . Melee Attacks 180 | . . . . . 37 7 3 10 71 52 . . Impact 68 | . . . . . . . 2 7 51 8 . . Slashing 47 | . . . . . 37 2 . 2 6 . . . Piercing 65 | . . . . . . 5 1 1 14 44 . . Sneak Attacks 5 | . . . . . 3 1 . . . 1 . . Combat Hostiles . | . . . . . . . . . . . . . Follow-up Attacks 27 | . . . . . 3 1 . 2 11 10 . . Damage Inflicted 7311 | . 1015 1046 . 977 797 201 . 187 1003 1514 . 571 Guns 596 | . 289 . . . . . . . . 158 . 149 Cannons 1738 | . . 339 . 977 . . . . . . . 422 Explosions 1432 | . 726 706 . . . . . . . . . . Melee 3543 | . . . . . 797 201 . 187 1003 1355 . . Ramming 2 | . . 1 . . . . . . . 1 . . Kinetic 2027 | . 289 339 . 977 . . . . . . . 422 Thermal 218 | . . . . . . . . . . 69 . 149 Explosive 1432 | . 726 706 . . . . . . . . . . Electromagnetic 89 | . . . . . . . . . . 89 . . Impact 1156 | . . . . . . . . 152 704 300 . . Slashing 962 | . . . . . 797 34 . . 131 . . . Piercing 1425 | . . . . . . 167 . 35 168 1055 . . Highest Corruption 13 | . 1 1 1 1 . . 1 . 1 6 13 13 Average Corruption 2 | . 1 1 1 1 . . 1 . 1 4 10 13 Corruption Purged . | . . . . . . . . . . . . . Corruption Blocked . | . . . . . . . . . . . . . Effects 36 | . . 12 . 2 . . 2 . 4 3 2 11 Message Errors 11 | . . 4 . 1 . . . . . . . 6 Matter Fused 10 | . . 2 . 1 . . 1 . 3 1 1 1 Heat Flow Errors 3 | . . 2 . . . . . . . . . 1 Energy Discharges 2 | . . 1 . . . . . . 1 . . . Parts Rejected 2 | . . . . . . . . . . . 1 1 Data Loss (minor) 4 | . . 1 . . . . . . . 2 . 1 Data Loss (major) 2 | . . 1 . . . . 1 . . . . . Misfires 1 | . . . . . . . . . . . . 1 Alerts 1 | . . 1 . . . . . . . . . . Overload Shots . | . . . . . . . . . . . . . Overflow Damage 556 | . 27 33 . 160 13 25 . 71 103 124 . . Projectiles 184 | . . 24 . 160 . . . . . . . . Explosions 36 | . 27 9 . . . . . . . . . . Melee 336 | . . . . . 13 25 . 71 103 124 . . Knockbacks 16 | . . . . 9 . . . 2 . 3 . 2 Impact 5 | . . . . . . . . 2 . 3 . . Kinetic 10 | . . . . 8 . . . . . . . 2 Secondary 1 | . . . . 1 . . . . . . . . Self-Inflicted Damage 9 | . 6 3 . . . . . . . . . . Shots 2 | . 1 1 . . . . . . . . . . Rammed 1 | . . . . . . . . . . 1 . . Targets Rammed 2 | . . 1 . . . . . . . 1 . . Kicked 1 | . . 1 . . . . . . . . . . Crushed . | . . . . . . . . . . . . . Highest Temperature 223 | . 25 223 . 222 13 . . . 7 62 . 202 Average Temperature 55 | . 9 60 . 76 9 . . . 7 29 . 88 Received Heat Transfer 1453 | . 222 33 . 144 270 . . . 416 311 . 57 Siege Activations . | . . . . . . . . . . . . . Robots Corrupted . | . . . . . . . . . . . . . Combat Hostiles . | . . . . . . . . . . . . . Parts Fried 7 | . . . . . . . . 6 . 1 . . Impact Corruptions 9 | . . . . 1 . . . 2 4 2 . . Robots Melted . | . . . . . . . . . . . . . Combat Hostiles . | . . . . . . . . . . . . . Parts Melted 1 | . . . . . . . . . . . . 1 Heat Transferred 333 | . . . . . . . . . . 74 . 259 Parts Sabotaged . | . . . . . . . . . . . . . Parts Stolen . | . . . . . . . . . . . . . Parts Stripped . | . . . . . . . . . . . . . Power Chain Reactions . | . . . . . . . . . . . . . Missiles Intercepted . | . . . . . . . . . . . . . Alert | -11 -10 -10 -10 -9 -8 -7 -6 -5 -5 -4 -4 -4 ------- Run | Scr Mat Min Exi Min Mat Fac Fac Fac Ext Fac Was Fac Peak Influence 440 | . 440 332 . 292 314 96 4 76 380 183 13 131 Initial 93 | . . 93 . . 35 51 2 1 37 93 13 9 Average 115 | . 177 156 . 195 146 42 2 58 156 61 13 60 Maximum Alert Level 2 | . 2 1 . 1 1 . . . 1 . . . Low Security (%) 80 | 100 50 73 . 45 64 100 100 100 83 100 100 100 Level 1 18 | . 39 26 . 54 35 . . . 16 . . . Level 2 . | . 10 . . . . . . . . . . . Level 3 . | . . . . . . . . . . . . . Level 4 . | . . . . . . . . . . . . . Level 5 . | . . . . . . . . . . . . . High Security . | . . . . . . . . . . . . . Max Security . | . . . . . . . . . . . . . Squads Dispatched 11 | . 1 1 . . 1 2 . . 2 3 . 1 Investigation 3 | . . 1 . . 1 . . . 1 . . . Extermination 3 | . . . . . . 1 . . . 2 . . Reinforcement 5 | . 1 . . . . 1 . . 1 1 . 1 Assault . | . . . . . . . . . . . . . Garrison . | . . . . . . . . . . . . . Intercept . | . . . . . . . . . . . . . Searches Triggered . | . . . . . . . . . . . . . Construction Impeded 1 | . . . . . . . . . 1 . . . Haulers Reinforced 1 | . . . . . . . . . . . . 1 Active Scanning Responses . | . . . . . . . . . . . . . Cargo Convoy Interrupts . | . . . . . . . . . . . . . Stealth | -11 -10 -10 -10 -9 -8 -7 -6 -5 -5 -4 -4 -4 --------- Run | Scr Mat Min Exi Min Mat Fac Fac Fac Ext Fac Was Fac Distress Signals 3 | . . . . . 2 . . . 1 . . . Communications Jammed . | . . . . . . . . . . . . . Distress Signals . | . . . . . . . . . . . . . Times Spotted 114 | . 13 17 . 11 22 3 . 2 22 15 6 3 Peak Tracking Total 18 | . 3 18 . 4 5 1 . 2 5 4 6 3 Tactical Retreats 7 | . . 1 . 3 1 . . . 2 . . . Traps | -11 -10 -10 -10 -9 -8 -7 -6 -5 -5 -4 -4 -4 ------- Run | Scr Mat Min Exi Min Mat Fac Fac Fac Ext Fac Was Fac Traps Triggered 6 | . 1 . . . . . 1 . 2 2 . . Indirectly . | . . . . . . . . . . . . . Trap Hack Attempts . | . . . . . . . . . . . . . Triggered . | . . . . . . . . . . . . . Disarmed . | . . . . . . . . . . . . . Reprogrammed . | . . . . . . . . . . . . . Reused . | . . . . . . . . . . . . . Traps Extracted . | . . . . . . . . . . . . . Installed . | . . . . . . . . . . . . . Triggered . | . . . . . . . . . . . . . Machines | -11 -10 -10 -10 -9 -8 -7 -6 -5 -5 -4 -4 -4 ---------- Run | Scr Mat Min Exi Min Mat Fac Fac Fac Ext Fac Was Fac Machines Disabled 9 | . 4 . . 1 . . . . . 1 . 3 Max in Single Turn 1 | . 1 . . 1 . . . . . 1 . 1 Garrison Access 1 | . . . . . 1 . . . . . . . Machines Sabotaged . | . . . . . . . . . . . . . Garrisons Compromised . | . . . . . . . . . . . . . Overloaded Fab Kills . | . . . . . . . . . . . . . Hacking | -11 -10 -10 -10 -9 -8 -7 -6 -5 -5 -4 -4 -4 --------- Run | Scr Mat Min Exi Min Mat Fac Fac Fac Ext Fac Was Fac Machines Accessed 15 | . 1 1 . . 2 2 1 1 4 1 . 2 Terminals 7 | . 1 . . . . . . 1 4 1 . . Fabricators 1 | . . . . . . 1 . . . . . . Repair Stations 4 | . . . . . 1 1 . . . . . 2 Recycling Units . | . . . . . . . . . . . . . Scanalyzers . | . . . . . . . . . . . . . Garrison Access 2 | . . . . . 1 . 1 . . . . . Total Hacks 34 | . 3 1 . . 8 4 1 1 11 1 . 4 Successful 12 | . 2 1 . . 3 1 . 1 1 1 . 2 Failed 22 | . 1 . . . 5 3 1 . 10 . . 2 Catastrophic 3 | . . . . . . . . . 2 . . 1 Database Lockouts . | . . . . . . . . . . . . . Manual 1 | . . . . . . . . . 1 . . . Terminals 16 | . 3 . . . . . . 1 11 1 . . Fabricators 2 | . . . . . . 2 . . . . . . Repair Stations 12 | . . . . . 6 2 . . . . . 4 Recycling Units . | . . . . . . . . . . . . . Scanalyzers . | . . . . . . . . . . . . . Garrison Access 3 | . . . . . 2 . 1 . . . . . Terminal Hacks 6 | . 2 1 . . . . . 1 1 1 . . Open Door 2 | . . 1 . . . . . 1 . . . . Open DSF 1 | . . . . . . . . . . 1 . . Registered Prototypes 1 | . 1 . . . . . . . . . . . Zone Layout 2 | . 1 . . . . . . . 1 . . . Fabricator Hacks . | . . . . . . . . . . . . . Repair Station Hacks 5 | . . . . . 2 1 . . . . . 2 Scan Component 4 | . . . . . 2 1 . . . . . 1 Repair 1 | . . . . . . . . . . . . 1 Recycling Unit Hacks . | . . . . . . . . . . . . . Scanalyzer . | . . . . . . . . . . . . . Garrison Access Hacks 1 | . . . . . 1 . . . . . . . Seal Access 1 | . . . . . 1 . . . . . . . Unauthorized Hacks . | . . . . . . . . . . . . . Terminals . | . . . . . . . . . . . . . Fabricators . | . . . . . . . . . . . . . Repair Stations . | . . . . . . . . . . . . . Recycling Units . | . . . . . . . . . . . . . Scanalyzers . | . . . . . . . . . . . . . Garrison Access . | . . . . . . . . . . . . . Data Cores Recovered . | . . . . . . . . . . . . . Used . | . . . . . . . . . . . . . Hacking Detections 11 | . . . . . 2 2 1 . 4 1 . 1 Full Trace Events 2 | . . . . . 1 . . . 1 . . . Feedback Events . | . . . . . . . . . . . . . Feedback Blocked . | . . . . . . . . . . . . . Robot Schematics Acquired . | . . . . . . . . . . . . . Robots Built . | . . . . . . . . . . . . . Authchips . | . . . . . . . . . . . . . Time . | . . . . . . . . . . . . . Total Robot Build Rating . | . . . . . . . . . . . . . Part Schematics Acquired . | . . . . . . . . . . . . . Parts Built . | . . . . . . . . . . . . . Authchips . | . . . . . . . . . . . . . Time . | . . . . . . . . . . . . . Total Part Build Rating . | . . . . . . . . . . . . . Parts Repaired . | . . . . . . . . . . . . . Time 136 | . . . . . . . . . . . . 136 Parts Recycled . | . . . . . . . . . . . . . Recycled Matter . | . . . . . . . . . . . . . Retrieved Matter . | . . . . . . . . . . . . . Retrieved Components . | . . . . . . . . . . . . . Parts Scanalyzed . | . . . . . . . . . . . . . Part Schematics Acquired . | . . . . . . . . . . . . . Parts Damaged . | . . . . . . . . . . . . . Bothacking | -11 -10 -10 -10 -9 -8 -7 -6 -5 -5 -4 -4 -4 ------------ Run | Scr Mat Min Exi Min Mat Fac Fac Fac Ext Fac Was Fac Used RIF Installer . | . . . . . . . . . . . . . Robots Hacked . | . . . . . . . . . . . . . Non-combat . | . . . . . . . . . . . . . Combat . | . . . . . . . . . . . . . Robot Hacks Applied . | . . . . . . . . . . . . . Relay Couplers Released . | . . . . . . . . . . . . . Fabnet Peak Effective % . | . . . . . . . . . . . . . Robots Rewired 3 | . . . . . . . . . 3 . . . Allies Hacked . | . . . . . . . . . . . . . Hacks Repelled . | . . . . . . . . . . . . . Allies | -11 -10 -10 -10 -9 -8 -7 -6 -5 -5 -4 -4 -4 -------- Run | Scr Mat Min Exi Min Mat Fac Fac Fac Ext Fac Was Fac Total Allies 7 | . . . . . . . . . 7 . . . Largest Group 6 | . . . . . . . . . 6 . . . Highest-Rated Group 313 | . . . . . . . . . 313 . . . Highest-Rated Ally 159 | . . . . . . . . . 159 . . . Total Orders . | . . . . . . . . . . . . . Ally Attacks 94 | . . . . . . . . . 94 . . . Total Damage 1975 | . . . . . . . . . 1975 . . . Kills 15 | . . . . . . . . . 15 . . . Allies Corrupted . | . . . . . . . . . . . . . Allies Melted . | . . . . . . . . . . . . . Intel | -11 -10 -10 -10 -9 -8 -7 -6 -5 -5 -4 -4 -4 ------- Run | Scr Mat Min Exi Min Mat Fac Fac Fac Ext Fac Was Fac Robot Analysis Total . | . . . . . . . . . . . . . Derelict Logs Recovered 2 | . . 1 . 1 . . . . . . . . Drone Launches . | . . . . . . . . . . . . . Drone Recoveries . | . . . . . . . . . . . . . Exploration | -11 -10 -10 -10 -9 -8 -7 -6 -5 -5 -4 -4 -4 ------------- Run | Scr Mat Min Exi Min Mat Fac Fac Fac Ext Fac Was Fac Turns Passed 5560 | 56 509 1043 249 401 418 535 322 246 781 618 49 333 Spaces Moved 3665 | 39 290 530 132 171 234 453 254 162 430 541 99 330 Core 33 | 1 . . . . . . . . . 32 . . Treads . | . . . . . . . . . . . . . Legs 2821 | 38 290 530 132 171 234 453 254 162 430 127 . . Wheels . | . . . . . . . . . . . . . Hover 811 | . . . . . . . . . . 382 99 330 Flight . | . . . . . . . . . . . . . Fastest Speed 43 | 50 120 120 190 190 120 105 107 130 110 43 43 43 Average Speed 119 | 123 127 177 190 190 132 105 109 130 126 79 43 44 Slowest Speed 350 | 190 190 190 190 190 190 120 130 130 260 350 43 45 Overloaded Moves . | . . . . . . . . . . . . . Propulsion Burnouts . | . . . . . . . . . . . . . Robots Hopped . | . . . . . . . . . . . . . Cave-ins Triggered . | . . . . . . . . . . . . . Exploration Rate (%) 35 | 3 57 85 54 49 24 13 7 4 58 12 85 14 Regions Visited 12 Branch Regions 4 Pre-discovered Areas 1 | . . 1 . . . . . . . . . . Known Exits Taken 1 | . . . . 1 . . . . . . . . Unknown Exits Taken 9 | 1 1 1 1 . 1 1 1 1 1 . . . Scrap Searched 2 | . . 1 . 1 . . . . . . . . Spaces Dug 10 | . . . . . . . 2 3 4 . . 1 Terrain Destroyed 128 | . 34 52 . 17 . . 2 3 4 . . 16 Melee 9 | . . . . . . . 2 3 4 . . . Projectile 37 | . . 4 . 17 . . . . . . . 16 AOE 82 | . 34 48 . . . . . . . . . . Terrain Rammed . | . . . . . . . . . . . . . Walls Destroyed . | . . . . . . . . . . . . . Machines Disabled . | . . . . . . . . . . . . . Actions | -11 -10 -10 -10 -9 -8 -7 -6 -5 -5 -4 -4 -4 --------- Run | Scr Mat Min Exi Min Mat Fac Fac Fac Ext Fac Was Fac Total 4469 | 44 377 608 131 206 291 504 299 184 572 659 104 490 Wait 315 | . 35 35 . 8 7 15 22 16 30 13 5 129 Move 3654 | 38 289 529 131 170 233 452 253 161 429 541 98 330 Hop . | . . . . . . . . . . . . . Pick Up 43 | . 5 7 . . 5 6 5 . . 10 . 5 Fast Attach 67 | 6 6 3 . . 3 6 2 . 9 26 1 5 Attach 18 | . . . . . 6 1 2 . 5 4 . . Detach 6 | . 2 . . . 1 1 1 . . 1 . . Swap 20 | . 1 3 . . 2 5 3 . 4 2 . . Drop 71 | . 4 9 . . 2 13 9 . 4 22 . 8 Fire 100 | . 35 21 . 28 . . . . . 3 . 13 Melee 133 | . . . . . 32 5 2 7 51 36 . . Ram 1 | . . . . . . . . . . 1 . . Kick 1 | . . 1 . . . . . . . . . . Crush . | . . . . . . . . . . . . . Escape Stasis 1 | . . . . . . . . . 1 . . . Rewire 39 | . . . . . . . . . 39 . . . Trap . | . . . . . . . . . . . . . Miscellaneous . | . . . . . . . . . . . . . Route ------- -11/Scrapyard -10/Materials (discovered 3 exits: [*Mat x2] / *Min) -10/Mines (discovered 3 exits: [*Mat x2] / [*Exi]) -10/Exiles (discovered 2 exits: [*Min x2]) -9/Mines (discovered 2 exits: *Mat x2) -8/Materials -7/Factory -6/Factory -5/Factory -5/Extension (discovered 2 exits: *Fac / [*Cet]) -4/Factory -4/Waste -4/Factory History --------- Turn | Location | Event 24 | -11/Scrapyard | Discovered new exit (range 15) 57 | -11/Scrapyard | Entered Materials 265 | -10/Materials | Discovered new exit (range 15) 310 | -10/Materials | Build established: Mutant 421 | -10/Materials | Discovered new exit (range 16) 482 | -10/Materials | Discovered new exit (range 13) 566 | -10/Materials | Entered Mines 603 | -10/Mines | Discovered new exit (range 6) 739 | -10/Mines | Assembled infested the area 744 | -10/Mines | Assisted by a Guerilla fighting off Assembled 835 | -10/Mines | Discovered new exit (range 14) 880 | -10/Mines | Met a Derelict shopkeep closing up shop 1151 | -10/Mines | Found a damaged Exp. Sensor Array with a note attached 1155 | -10/Mines | Found Prototype Device 1195 | -10/Mines | Learned location of Storage (-7) 1472 | -10/Mines | Learned Materials non-interactive machine intel 1601 | -10/Mines | Deemed a non-threat by the Exiles lab entrance 1601 | -10/Mines | Discovered new exit (range 5) 1609 | -10/Mines | Entered Exiles 1634 | -10/Exiles | Discovered new exit (range 18) 1657 | -10/Exiles | Met 8R-AWN 1687 | -10/Exiles | Met EX-HEX 1763 | -10/Exiles | Met EX-DEC 1839 | -10/Exiles | Discovered new exit (range 11) 1858 | -10/Exiles | Entered Mines 2043 | -9/Mines | Core integrity fell below 50% 2204 | -9/Mines | Discovered new exit (range 11) 2231 | -9/Mines | Identified exit to Materials 2259 | -9/Mines | Entered Materials 2259 | -8/Materials | Evolved 4 slots: Propulsion x1, Utility x3 2260 | -8/Materials | Loaded intel: 30 non-interactive machine locations 2260 | -8/Materials | Identified Exp. Sensor Array 2452 | -8/Materials | Discovered new exit (range 9) 2677 | -8/Materials | Entered Factory 2677 | -7/Factory | Evolved 2 slots: Propulsion x1, Utility x1 3186 | -7/Factory | Discovered new exit (range 15) 3212 | -7/Factory | Entered another Factory area 3212 | -6/Factory | Evolved 2 slots: Utility x1, Weapon x1 3481 | -6/Factory | Discovered new exit (range 15) 3534 | -6/Factory | Entered another Factory area 3534 | -5/Factory | Evolved 2 slots: Utility x2 3639 | -5/Factory | Discovered new exit (range 10) 3780 | -5/Factory | Entered Extension 4012 | -5/Extension | Rescued A7 4036 | -5/Extension | Rescued a captive Derelict 4109 | -5/Extension | Rescued a captive Derelict 4112 | -5/Extension | Rescued a captive Derelict 4268 | -5/Extension | Spotted B-75 Beast 4284 | -5/Extension | Spotted B-75 Beast 4319 | -5/Extension | Extracted ID and sensor layout for unrecognized location from A7's data core 4328 | -5/Extension | Allies destroyed B-75 Beast 4336 | -5/Extension | Allies destroyed B-75 Beast 4372 | -5/Extension | Lost 11 parts (2p5n4u) 4536 | -5/Extension | Discovered new exit (range 20) 4536 | -5/Extension | Discovered new exit (range 20) 4561 | -5/Extension | Entered Factory 4561 | -4/Factory | Evolved 2 slots: Utility x2 4671 | -4/Factory | Lost 10 parts (1p4n5u) 4882 | -4/Factory | Core integrity fell below 50% 4907 | -4/Factory | Core integrity fell below 20% 4933 | -4/Factory | Lost 4 parts (1p3w) 5016 | -4/Factory | Spotted B-86 Titan 5179 | -4/Factory | Sucked down chute 5179 | -4/Factory | Entered Waste 5183 | -4/Waste | Spotted C-40 Crusher 5190 | -4/Waste | Spotted C-40 Crusher 5191 | -4/Waste | Spotted C-40 Crusher 5191 | -4/Waste | Spotted C-40 Crusher 5191 | -4/Waste | Spotted C-40 Crusher 5194 | -4/Waste | EMP discharged 5194 | -4/Waste | System corruption reached 10% 5201 | -4/Waste | Spotted C-40 Crusher 5224 | -4/Waste | Discovered new exit (range 11) 5228 | -4/Waste | Identified exit to Factory 5228 | -4/Waste | Entered Factory 5385 | -4/Factory | Build established: Scavenger-Gunner 5529 | -4/Factory | Spotted B-86 Titan 5561 | -4/Factory | Destroyed by G-67 Veteran with Plasma Rifle Last Messages --------------- 05496_ G-67 Veteran Field Laser blasted off. 05499_ Adv. Heat Sink melted. 05499_ G-67 Veteran destroyed. 05503_ Acquired 1 matter. 05505_ Acquired 36 matter. 05509_ A-15 Conveyor calls for reinforcements. 05509_ ALERT: Hostile activity reported, dispatching reinforcements to area. 05511_ A-15 Conveyor destroyed. 05512_ R-10 Processor collects Authchip [R/Combat]. 05515_ Acquired 16 matter. 05515_ R-10 Processor collects Authchip [Storage]. 05516_ Dropped Imp. Thermal Shield. 05516_ Acquired Authchip [Propulsion]. 05517_ U-05 Engineer builds a Wall. 05518_ Dropped Authchip [Propulsion]. 05519_ Acquired Authchip [Processor]. 05534_ ZDC&ITUTY%NBPW6N1Q%HK751AKPFNHPDKL 05554_ System corrupted: Imp. Propulsion Shielding rejected. 05554_ Acquired Imp. Propulsion Shielding. Map ----- +----------------------------------------------------+ | ?????????????????????????????????????????????????? | | ?????????????????????????????????????????????????? | | ?????????????????????????????????????????????????? | | ?????????????????????????????????????????????????? | | ?????????????????????????????????????? ?????????? | | ????????????????????????????????????? ?????????? | | ????????????????????????????????????? ?????????? | | ????????????????????????????????????? "????????? | | ????????????????????????????????????? "????????? | | ????????????????????????????????????? "????????? | | ?????????????????????????????????????# ????????? | | ?????????????????????????????????????# ""???????? | | ?????????????????????????????????????# ""??"""??? | | ?????????????????????????????????????# """ """??? | | ?????????????????????????????????????# ??? | | ????????????????????????????????????? """ """ ? | | ????????????????????????????????????? """ """ | | ?????????????????????????????????????# """ """ | | ????????????????????? ###+############ ? | | ???????????????????? ? | | ???????????????????? ?? | | ??????????????????? "" "" ? | | ??????????????????? "F "" ? | | ??????????????????? """"" ?? | | ????????????????????????###############+##### ? | | ????????????????????????#@ ; g # | | ????????????????????????############ """ # | | ???????????????????????????????????# """ # | | ???????????????????????????????????# """ # | | ???????????????????????????????????# # | | ???????????????????????????????????# """ # | | ???????????????????????????????????# """ # | | ???????????????????????????????????# """ # | | ???????????????????????????????????# # | | ???????????????????????????????????###+###### | | ???????????????????##????????????????# #????# | | ????????????????? ???????????????# #????# | | ????????????????""" """??###?????????# #????# | | ??????????????? """ """?##"######????# #????###### | | ????????????# """ """ # #????# #?????????? | | ????????????? # ###### ########### | | ?????????????????"" """ # % !!%! | | ?????????????????"" """ + =%T %!= | | ?????????????????????"" # [ ] ! % | | ????????????????????????# % ##+#########+##### | | ????????????????????????# ! # ????? ??? | | ????????????????????????###""#### #? """" ? | | ?????????????????????????# # " " ## ! """" # | | ?????????????????????????# # " " ## """" # | | ?????????????????????????# """ # " " ##""" """" # | +----------------------------------------------------+ Best States ------------- Heat Dissipation 76 Energy Generation 21 Energy Capacity 315 Matter Stores 300 Matter Capacity 300 Sight Range 20 Terrain Scan Density 10 Armor Coverage 975 Resistance: TH 15 Resistance: EX 25 Resistance: EM 20 Core Shielding 30 Propulsion Shielding 66 Weapon Shielding 66 Melee Speed Boost 20 Evasion (%) 56 Targeting Accuracy 6 Melee Accuracy 8 Target Analysis 11 Authchip Count 1 Item Schematics ----------------- None Robot Schematics ------------------ None Fabricated ------------ Nothing Alien Tech Used ----------------- None Achievements -------------- None Challenges ------------ None Game ------ Seed DiametricRagnarokShotgun Manual? 0 Play Time 00:48:23 Cumulative 258.4 hours Start 2022.05.05 @ 10:30:17 End 2022.05.05 @ 14:08:00 Sessions 5 Manual Loads 0 Difficulty Rogue Special Mode None Game No. 487 Rogue 332 Adventurer 148 Explorer 7 Win Type - Total 10 Types 8/0/1/1/0/0/0/0/0 Lore% 70 Gallery% 82 Achievement% 65 Wizard Run 0 Options --------- ASCII 0 Keyboard 0 Movement Numpad Keybinds 0 Fullscreen 1 Font 18/SmallcapsGlow Map View 76x50 Tactical HUD 1 Map Filters NONE Filters NONE Steam 1 RUN: 31bc7f75-516c-48e1-a5ff-ccfc730d1107